[Event "AUT 2nd BL Ost 2021-22"]
[Site "Austria"]
[Date "2022.04.04"]
[Round "11.18"]
[White "Karner, Daniel"]
[Black "Schmidrathner, Christian"]
[Result "1-0"]
[ECO "B76"]
[WhiteElo "1781"]
[BlackElo "2013"]
[Annotator "ChessBase"]
[PlyCount "81"]
[EventDate "2022.04.01"]
[EventType "team-tourn"]
[EventCountry "AUT"]
[SourceTitle "playchess.com"]
[Source "ChessBase"]
[SourceQuality "1"]
[TimeControl "40/5400+30:1800+30"]

1. e4 {[%emt 0:00:03]} c5 {[%emt 0:00:05]} 2. Nf3 {[%emt 0:00:06]} d6 {[%emt 0:00:06]} 3. d4 {[%emt 0:00:06]} cxd4 {[%emt 0:00:03]} 4. Nxd4 {[%emt 0:00:08]} Nf6 {[%emt 0:00:03]} 5. Nc3 {[%emt 0:00:08]} g6 {[%emt 0:00:03]} 6. Be3 {[%emt 0:00:07]} Bg7 {[%emt 0:00:06]} 7. f3 {[%emt 0:00:08]} O-O {[%emt 0:00:08]} 8. Qd2 {[%emt 0:00:06]} Nc6 {[%emt 0:00:05]} 9. O-O-O {[%emt 0:00:11]} d5 {[%emt 0:00:03]} 10. Qe1 {[%emt 0:02:28]} e5 {[%emt 0:00:21]} 11. Nxc6 {[%emt 0:00:28]} bxc6 {[%emt 0:00:03]} 12. exd5 {[%emt 0:01:03]} Nxd5 {[%emt 0:00:10]} 13. Bc4 {[%emt 0:00:59]} Be6 {[%emt 0:00:18]} 14. Ne4 {[%emt 0:00:33]} Qc7 {[%emt 0:08:00]} 15. Bc5 {[%emt 0:03:57]} Rfd8 {[%emt 0:02:04]} 16. g4 {[%emt 0:00:52]} h6 {[%emt 0:03:14]} 17. h4 {[%emt 0:02:45]} Bf8 {[%emt 0:04:57]} 18. Bxd5 {[%emt 0:11:12]} cxd5 {[%emt 0:01:26]} 19. Nf6+ {[%emt 0:00:51]} Kg7 {[%emt 0:00:26]} 20. Bxf8+ {[%emt 0:00:41]} Kxf8 {[%emt 0:00:29]} 21. Qe3 {[%emt 0:08:09]} Kg7 {[%emt 0:04:20]} 22. g5 {[%emt 0:00:37]} h5 {[%emt 0:00:33]} 23. Rhe1 {[%emt 0:02:15]} Rac8 {[%emt 0:00:22]} 24. Rd2 {[%emt 0:01:45]} e4 {[%emt 0:12:57]} 25. Qd4 {[%emt 0:05:50]} Kf8 {[%emt 0:02:28]} 26. fxe4 {[%emt 0:05:33]} dxe4 {[%emt 0:03:24]} 27. Qxe4 {[%emt 0:03:31]} Rxd2 {[%emt 0:03:53]} 28. Kxd2 {[%emt 0:00:45]} Qa5+ {[%emt 0:02:12]} 29. Kc1 {[%emt 0:01:31]} Qxa2 {[%emt 0:09:34]} 30. Qb4+ {[%emt 0:01:25]} Kg7 {[%emt 0:00:15]} 31. Qd4 {[%emt 0:00:07]} Qc4 {[%emt 0:07:04]} 32. Nxh5+ {[%emt 0:04:21]} Kf8 {[%emt 0:00:09]} 33. Qd6+ {[%emt 0:01:26]} Kg8 {[%emt 0:00:33]} 34. Nf6+ {[%emt 0:00:16]} Kg7 {[%emt 0:00:30]} 35. Qh2 {[%emt 0:00:46]} Bf5 {[%emt 0:01:47]} 36. Re2 {[%emt 0:07:20]} Qa2 {[%emt 0:05:13]} 37. Ne8+ {[%emt 0:02:34]} Kh7 {[%emt 0:11:52]} 38. Nf6+ {[%emt 0:00:20]} Kh8 {[%emt 0:03:05]} 39. Qc7 {[%emt 0:00:44]} Kg7 {[%emt 0:04:17]} 40. Qxc8 {[%emt 0:01:17]} Bxc8 {[%emt 0:00:21]} 41. Re8 {[%emt 0:30:06]} 1-0

[Event "AUT 2nd BL Ost 2021-22"]
[Site "Austria"]
[Date "2022.04.04"]
[Round "11.19"]
[White "Stanec, Nikolaus"]
[Black "Wukits, Rene"]
[Result "1/2-1/2"]
[ECO "B50"]
[WhiteElo "2485"]
[BlackElo "2309"]
[Annotator "ChessBase"]
[PlyCount "41"]
[EventDate "2022.04.01"]
[EventType "team-tourn"]
[EventCountry "AUT"]
[SourceTitle "playchess.com"]
[Source "ChessBase"]
[SourceQuality "1"]
[TimeControl "40/5400+30:1800+30"]

1. e4 {[%emt 0:00:04]} c5 {[%emt 0:00:19]} 2. Nf3 {[%emt 0:00:09]} d6 {[%emt 0:00:11]} 3. c3 {[%emt 0:00:14]} Nf6 {[%emt 0:00:08]} 4. Be2 {[%emt 0:00:05]} Bd7 {[%emt 0:07:14]} 5. d3 {[%emt 0:00:15]} Nc6 {[%emt 0:00:07]} 6. O-O {[%emt 0:00:08]} e5 {[%emt 0:02:24]} 7. Nbd2 {[%emt 0:02:10]} Be7 {[%emt 0:00:25]} 8. a3 {[%emt 0:01:12]} O-O {[%emt 0:01:07]} 9. b4 {[%emt 0:00:20]} a6 {[%emt 0:02:56]} 10. Bb2 {[%emt 0:00:57]} Qc7 {[%emt 0:05:07]} 11. Rc1 {[%emt 0:06:20]} b6 {[%emt 0:17:56]} 12. d4 {[%emt 0:01:36]} d5 {[%emt 0:07:05]} 13. exd5 {[%emt 0:15:06]} Nxd5 {[%emt 0:00:15]} 14. dxe5 {[%emt 0:00:59]} Nf4 {[%emt 0:00:53]} 15. Re1 {[%emt 0:02:33]} Bf5 {[%emt 0:06:26]} 16. Bf1 {[%emt 0:10:12]} Rad8 {[%emt 0:02:00]} 17. bxc5 {[%emt 0:10:26]} Bxc5 {[%emt 0:11:36]} 18. Nd4 {[%emt 0:03:58]} Nxe5 {[%emt 0:02:14]} 19. Ne4 {[%emt 0:05:20]} Bc8 {[%emt 0:12:55]} 20. f3 {[%emt 0:06:24]} Rfe8 {[%emt 0:01:01]} 21. Kh1 {[%emt 0:01:16]} 1/2-1/2

[Event "AUT 2nd BL Ost 2021-22"]
[Site "Austria"]
[Date "2022.04.04"]
[Round "11.20"]
[White "Schroll, Gerhard"]
[Black "Kummer, Helmut"]
[Result "1-0"]
[ECO "E91"]
[WhiteElo "2299"]
[BlackElo "2248"]
[Annotator "ChessBase"]
[PlyCount "51"]
[EventDate "2022.04.01"]
[EventType "team-tourn"]
[EventCountry "AUT"]
[SourceTitle "playchess.com"]
[Source "ChessBase"]
[SourceQuality "1"]
[TimeControl "40/5400+30:1800+30"]

1. e4 {[%emt 0:00:02]} g6 {[%emt 0:00:34]} 2. d4 {[%emt 0:00:37]} Bg7 {[%emt 0:00:07]} 3. Nf3 {[%emt 0:01:35]} c6 {[%emt 0:03:00]} 4. c4 {[%emt 0:00:41]} d6 {[%emt 0:05:07]} 5. Nc3 {[%emt 0:01:36]} Nf6 {[%emt 0:02:36]} 6. Be2 {[%emt 0:05:15]} O-O {[%emt 0:01:54]} 7. O-O {[%emt 0:00:51]} Na6 {[%emt 0:14:37]} 8. h3 {[%emt 0:00:57]} Nc7 {[%emt 0:05:18]} 9. d5 {[%emt 0:10:55]} c5 {[%emt 0:04:48]} 10. Bf4 {[%emt 0:03:39]} Nd7 {[%emt 0:00:40]} 11. Qd2 {[%emt 0:02:17]} Ne5 {[%emt 0:06:49]} 12. Nh2 {[%emt 0:04:48]} a6 {[%emt 0:01:33]} 13. a4 {[%emt 0:02:05]} b6 {[%emt 0:01:17]} 14. Be3 {[%emt 0:01:32]} f6 {[%emt 0:03:29]} 15. f4 {[%emt 0:04:22]} Nf7 {[%emt 0:00:06]} 16. h4 {[%emt 0:04:49]} f5 {[%emt 0:04:09]} 17. h5 {[%emt 0:00:58]} Bd7 {[%emt 0:10:27]} 18. g4 {[%emt 0:08:12]} fxg4 {[%emt 0:00:30]} 19. hxg6 {[%emt 0:00:41]} hxg6 {[%emt 0:00:52]} 20. Bxg4 {[%emt 0:01:00]} Bxg4 {[%emt 0:00:48]} 21. Nxg4 {[%emt 0:00:24]} e6 {[%emt 0:11:18]} 22. dxe6 {[%emt 0:17:09]} Nxe6 {[%emt 0:00:07]} 23. Nd5 {[%emt 0:01:20]} Nd4 {[%emt 0:05:37]} 24. Qg2 {[%emt 0:01:37]} Nh8 {[%emt 0:08:42]} 25. f5 {[%emt 0:03:29]} gxf5 {[%emt 0:00:24]} 26. exf5 {[%emt 0:00:27]} 1-0

[Event "AUT 2nd BL Ost 2021-22"]
[Site "Austria"]
[Date "2022.04.04"]
[Round "11.21"]
[White "Schwab, Lukas"]
[Black "Jablonicky, Martin"]
[Result "0-1"]
[ECO "B06"]
[WhiteElo "2163"]
[BlackElo "2317"]
[Annotator "ChessBase"]
[PlyCount "78"]
[EventDate "2022.04.01"]
[EventType "team-tourn"]
[EventCountry "AUT"]
[SourceTitle "playchess.com"]
[Source "ChessBase"]
[SourceQuality "1"]
[TimeControl "40/5400+30:1800+30"]

1. e4 {[%emt 0:00:05]} g6 {[%emt 0:00:26]} 2. d4 {[%emt 0:00:44]} Nf6 {[%emt 0:00:40]} 3. e5 {[%emt 0:03:15]} Nh5 {[%emt 0:00:16]} 4. Nf3 {[%emt 0:00:57]} d6 {[%emt 0:00:26]} 5. exd6 {[%emt 0:03:50]} cxd6 {[%emt 0:01:38]} 6. Bd3 {[%emt 0:02:24]} Bg7 {[%emt 0:00:09]} 7. c3 {[%emt 0:00:20]} O-O {[%emt 0:00:18]} 8. O-O {[%emt 0:00:36]} e5 {[%emt 0:02:27]} 9. Re1 {[%emt 0:05:29]} Nc6 {[%emt 0:00:34]} 10. dxe5 {[%emt 0:07:18]} dxe5 {[%emt 0:00:18]} 11. Na3 {[%emt 0:01:12]} Nf4 {[%emt 0:09:40]} 12. Be4 {[%emt 0:16:27]} Be6 {[%emt 0:08:02]} 13. Qc2 {[%emt 0:11:17]} Qf6 {[%emt 0:05:11]} 14. Bxc6 {[%emt 0:17:01]} bxc6 {[%emt 0:00:01]} 15. Nxe5 {[%emt 0:00:46]} Nxg2 {[%emt 0:08:49]} 16. Kxg2 {[%emt 0:01:22]} Bd5+ {[%emt 0:00:04]} 17. Kg1 {[%emt 0:05:04]} Qh4 {[%emt 0:00:56]} 18. c4 {[%emt 0:05:12]} Bxe5 {[%emt 0:02:13]} 19. cxd5 {[%emt 0:04:07]} Rae8 {[%emt 0:02:10]} 20. Be3 {[%emt 0:00:38]} cxd5 {[%emt 0:03:59]} 21. f3 {[%emt 0:00:48]} Bf4 {[%emt 0:02:04]} 22. Bxf4 {[%emt 0:03:17]} Rxe1+ {[%emt 0:04:28]} 23. Rxe1 {[%emt 0:00:02]} Qxe1+ {[%emt 0:00:07]} 24. Kg2 {[%emt 0:00:02]} Re8 {[%emt 0:00:12]} 25. Kh3 {[%emt 0:01:51]} Qf1+ {[%emt 0:08:03]} 26. Kg3 {[%emt 0:01:32]} h5 {[%emt 0:02:23]} 27. Qc6 {[%emt 0:01:31]} Re2 {[%emt 0:11:34]} 28. Qa8+ {[%emt 0:00:34]} Kg7 {[%emt 0:00:57]} 29. Qxd5 {[%emt 0:00:25]} Rg2+ {[%emt 0:01:54]} 30. Kh4 {[%emt 0:00:05]} g5+ {[%emt 0:00:04]} 31. Bxg5 {[%emt 0:05:55]} Rxh2+ {[%emt 0:00:12]} 32. Kg3 {[%emt 0:00:02]} Rg2+ {[%emt 0:00:16]} 33. Kf4 {[%emt 0:00:18]} Qc1+ {[%emt 0:00:03]} 34. Ke4 {[%emt 0:00:18]} Qxg5 {[%emt 0:00:44]} 35. Qxg5+ {[%emt 0:00:39]} Rxg5 {[%emt 0:00:06]} 36. f4 {[%emt 0:00:12]} Rg2 {[%emt 0:00:34]} 37. Nc4 {[%emt 0:00:20]} h4 {[%emt 0:00:15]} 38. Kf3 {[%emt 0:00:09]} h3 {[%emt 0:00:18]} 39. a4 {[%emt 0:00:14]} Rg1 {[%emt 0:00:28]} 0-1

[Event "AUT 2nd BL Ost 2021-22"]
[Site "Austria"]
[Date "2022.04.04"]
[Round "11.22"]
[White "Petran, Peter"]
[Black "Hechl, Fabian"]
[Result "1/2-1/2"]
[ECO "A20"]
[WhiteElo "2240"]
[BlackElo "2023"]
[Annotator "ChessBase"]
[PlyCount "67"]
[EventDate "2022.04.01"]
[EventType "team-tourn"]
[EventCountry "AUT"]
[SourceTitle "playchess.com"]
[Source "ChessBase"]
[SourceQuality "1"]
[TimeControl "40/5400+30:1800+30"]

1. g3 {[%emt 0:00:02]} e5 {[%emt 0:00:04]} 2. c4 {[%emt 0:00:09]} h5 {[%emt 0:00:05]} 3. h3 {[%emt 0:01:36]} c6 {[%emt 0:00:14]} 4. d4 {[%emt 0:00:21]} e4 {[%emt 0:00:12]} 5. d5 {[%emt 0:00:19]} cxd5 {[%emt 0:01:20]} 6. cxd5 {[%emt 0:00:02]} Bb4+ {[%emt 0:01:21]} 7. Bd2 {[%emt 0:00:25]} Qe7 {[%emt 0:00:30]} 8. a3 {[%emt 0:08:13]} Bxd2+ {[%emt 0:18:11]} 9. Qxd2 {[%emt 0:00:09]} d6 {[%emt 0:01:46]} 10. Nc3 {[%emt 0:01:23]} Nd7 {[%emt 0:05:44]} 11. Qe3 {[%emt 0:06:19]} Ngf6 {[%emt 0:04:55]} 12. Bg2 {[%emt 0:00:54]} O-O {[%emt 0:10:30]} 13. Nxe4 {[%emt 0:07:52]} Nxd5 {[%emt 0:02:07]} 14. Qd4 {[%emt 0:01:24]} N7b6 {[%emt 0:03:09]} 15. Nd2 {[%emt 0:08:06]} Be6 {[%emt 0:04:07]} 16. Ngf3 {[%emt 0:00:53]} Rac8 {[%emt 0:02:39]} 17. O-O {[%emt 0:02:23]} Rc7 {[%emt 0:02:12]} 18. Rfd1 {[%emt 0:04:24]} Rfc8 {[%emt 0:02:36]} 19. b3 {[%emt 0:10:45]} Nc3 {[%emt 0:11:59]} 20. Re1 {[%emt 0:00:54]} Bxb3 {[%emt 0:02:12]} 21. Nxb3 {[%emt 0:03:04]} Nxe2+ {[%emt 0:00:04]} 22. Rxe2 {[%emt 0:00:09]} Qxe2 {[%emt 0:00:01]} 23. Nbd2 {[%emt 0:03:40]} Rc1+ {[%emt 0:01:27]} 24. Rxc1 {[%emt 0:00:28]} Rxc1+ {[%emt 0:00:01]} 25. Kh2 {[%emt 0:12:25]} d5 {[%emt 0:00:55]} 26. a4 {[%emt 0:06:01]} Rd1 {[%emt 0:08:48]} 27. Qc5 {[%emt 0:07:11]} Nc4 {[%emt 0:09:38]} 28. Qc8+ {[%emt 0:01:08]} Kh7 {[%emt 0:00:05]} 29. Qf5+ {[%emt 0:00:49]} Kg8 {[%emt 0:00:12]} 30. Nxc4 {[%emt 0:07:37]} dxc4 {[%emt 0:05:47]} 31. Ne5 {[%emt 0:01:31]} f6 {[%emt 0:01:49]} 32. Qe6+ {[%emt 0:04:10]} Kh7 {[%emt 0:00:02]} 33. Qf5+ {[%emt 0:00:13]} Kg8 {[%emt 0:00:05]} 34. Nf3 {[%emt 0:03:59]} 1/2-1/2

[Event "AUT 2nd BL Ost 2021-22"]
[Site "Austria"]
[Date "2022.04.04"]
[Round "11.23"]
[White "Froewis, Annika"]
[Black "Salamon, Werner"]
[Result "1/2-1/2"]
[ECO "C50"]
[WhiteElo "2065"]
[BlackElo "2120"]
[Annotator "ChessBase"]
[PlyCount "76"]
[EventDate "2022.04.01"]
[EventType "team-tourn"]
[EventCountry "AUT"]
[SourceTitle "playchess.com"]
[Source "ChessBase"]
[SourceQuality "1"]
[TimeControl "40/5400+30:1800+30"]

1. e4 {[%emt 0:00:03]} e5 {[%emt 0:00:07]} 2. Nf3 {[%emt 0:00:04]} Nc6 {[%emt 0:00:09]} 3. d4 {[%emt 0:02:10]} exd4 {[%emt 0:00:59]} 4. Bc4 {[%emt 0:00:07]} d6 {[%emt 0:02:53]} 5. Nxd4 {[%emt 0:00:26]} Nf6 {[%emt 0:02:33]} 6. Nc3 {[%emt 0:01:04]} Be7 {[%emt 0:03:24]} 7. O-O {[%emt 0:00:55]} O-O {[%emt 0:00:56]} 8. h3 {[%emt 0:00:07]} Nd7 {[%emt 0:03:31]} 9. Nd5 {[%emt 0:08:35]} Bf6 {[%emt 0:02:36]} 10. Nb5 {[%emt 0:05:05]} Nb6 {[%emt 0:16:51]} 11. Nbxc7 {[%emt 0:07:10]} Rb8 {[%emt 0:08:52]} 12. Nxb6 {[%emt 0:05:04]} Qxc7 {[%emt 0:05:18]} 13. Nd5 {[%emt 0:00:50]} Qd8 {[%emt 0:00:09]} 14. a4 {[%emt 0:07:26]} Re8 {[%emt 0:02:13]} 15. Re1 {[%emt 0:02:35]} Be6 {[%emt 0:01:28]} 16. c3 {[%emt 0:06:46]} Rc8 {[%emt 0:08:27]} 17. Ba2 {[%emt 0:08:49]} Ne5 {[%emt 0:07:37]} 18. Be3 {[%emt 0:05:33]} b6 {[%emt 0:03:08]} 19. a5 {[%emt 0:14:59]} bxa5 {[%emt 0:02:11]} 20. Bxa7 {[%emt 0:00:31]} Bxd5 {[%emt 0:03:54]} 21. Bxd5 {[%emt 0:00:59]} Qc7 {[%emt 0:04:33]} 22. Bd4 {[%emt 0:01:20]} Rb8 {[%emt 0:01:08]} 23. Ra2 {[%emt 0:10:16]} Nd7 {[%emt 0:03:20]} 24. Qa4 {[%emt 0:08:39]} Bxd4 {[%emt 0:03:05]} 25. cxd4 {[%emt 0:00:32]} Nf6 {[%emt 0:04:40]} 26. Bc6 {[%emt 0:02:44]} Rec8 {[%emt 0:02:33]} 27. d5 {[%emt 0:00:29]} Rb4 {[%emt 0:01:12]} 28. Qc2 {[%emt 0:00:39]} Qb6 {[%emt 0:01:18]} 29. Kh2 {[%emt 0:00:29]} Rb8 {[%emt 0:00:43]} 30. Re2 {[%emt 0:00:30]} h6 {[%emt 0:01:46]} 31. f3 {[%emt 0:00:17]} Qd4 {[%emt 0:00:40]} 32. Rd2 {[%emt 0:00:42]} Qe5+ {[%emt 0:00:32]} 33. Kg1 {[%emt 0:00:22]} Qg3 {[%emt 0:00:32]} 34. Rd1 {[%emt 0:00:34]} Nh5 {[%emt 0:00:21]} 35. Bd7 {[%emt 0:00:33]} Nf4 {[%emt 0:00:58]} 36. Qf2 {[%emt 0:00:31]} Qxf2+ {[%emt 0:01:12]} 37. Kxf2 {[%emt 0:00:00]} Rxb2+ {[%emt 0:00:10]} 38. Rd2 {[%emt 0:01:01]} Nd3+ {[%emt 0:01:59]} 1/2-1/2

[Event "AUT 2nd BL Ost 2021-22"]
[Site "Austria"]
[Date "2022.04.04"]
[Round "11.24"]
[White "Wiedner, Robert"]
[Black "Dotzer, Lukas"]
[Result "0-1"]
[ECO "E66"]
[WhiteElo "2114"]
[BlackElo "2072"]
[Annotator "ChessBase"]
[PlyCount "86"]
[EventDate "2022.04.01"]
[EventType "team-tourn"]
[EventCountry "AUT"]
[SourceTitle "playchess.com"]
[Source "ChessBase"]
[SourceQuality "1"]
[TimeControl "40/5400+30:1800+30"]

1. c4 {[%emt 0:00:16]} Nf6 {[%emt 0:00:07]} 2. Nc3 {[%emt 0:00:10]} g6 {[%emt 0:00:13]} 3. g3 {[%emt 0:00:38]} Bg7 {[%emt 0:00:07]} 4. Bg2 {[%emt 0:00:06]} O-O {[%emt 0:00:12]} 5. Nf3 {[%emt 0:01:10]} d6 {[%emt 0:00:08]} 6. d4 {[%emt 0:01:28]} Nc6 {[%emt 0:00:08]} 7. d5 {[%emt 0:02:45]} Na5 {[%emt 0:02:16]} 8. Qd3 {[%emt 0:02:10]} c5 {[%emt 0:00:00]} 9. O-O {[%emt 0:02:10]} a6 {[%emt 0:00:00]} 10. Nd2 {[%emt 0:07:59]} Ng4 {[%emt 0:07:20]} 11. b3 {[%emt 0:00:44]} b5 {[%emt 0:00:52]} 12. Bb2 {[%emt 0:11:11]} Ne5 {[%emt 0:05:18]} 13. Qe4 {[%emt 0:00:00]} bxc4 {[%emt 0:04:22]} 14. bxc4 {[%emt 0:00:00]} Rb8 {[%emt 0:03:23]} 15. Nd1 {[%emt 0:00:00]} Bf5 {[%emt 0:11:32]} 16. Qf4 {[%emt 0:00:00]} e6 {[%emt 0:00:13]} 17. h4 {[%emt 0:06:44]} h6 {[%emt 0:02:53]} 18. Bc3 {[%emt 0:10:25]} g5 {[%emt 0:01:12]} 19. hxg5 {[%emt 0:00:35]} hxg5 {[%emt 0:02:58]} 20. Qe3 {[%emt 0:00:07]} Naxc4 {[%emt 0:01:33]} 21. Nxc4 {[%emt 0:00:15]} Nxc4 {[%emt 0:00:09]} 22. Qc1 {[%emt 0:00:17]} e5 {[%emt 0:02:02]} 23. e4 {[%emt 0:03:56]} Bd7 {[%emt 0:04:07]} 24. Be1 {[%emt 0:01:31]} Nb6 {[%emt 0:02:35]} 25. Bd2 {[%emt 0:00:18]} g4 {[%emt 0:03:22]} 26. Rb1 {[%emt 0:02:19]} f5 {[%emt 0:03:39]} 27. Re1 {[%emt 0:09:50]} Qf6 {[%emt 0:05:02]} 28. Ba5 {[%emt 0:03:37]} Na4 {[%emt 0:06:56]} 29. exf5 {[%emt 0:02:47]} Bxf5 {[%emt 0:03:44]} 30. Be4 {[%emt 0:00:11]} Bh6 {[%emt 0:03:48]} 31. Qc2 {[%emt 0:01:04]} Bd7 {[%emt 0:05:31]} 32. Bd3 {[%emt 0:07:06]} Rxb1 {[%emt 0:08:18]} 33. Qxb1 {[%emt 0:00:11]} Rf7 {[%emt 0:00:40]} 34. Re4 {[%emt 0:07:01]} Bg5 {[%emt 0:02:06]} 35. Qc2 {[%emt 0:01:41]} c4 {[%emt 0:01:15]} 36. Rxc4 {[%emt 0:00:08]} Nc5 {[%emt 0:02:50]} 37. Be2 {[%emt 0:01:13]} Bf5 {[%emt 0:01:42]} 38. Qb2 {[%emt 0:02:23]} Be4 {[%emt 0:03:50]} 39. Bxg4 {[%emt 0:01:32]} Bxd5 {[%emt 0:00:27]} 40. Rc3 {[%emt 0:05:12]} Qh6 {[%emt 0:01:52]} 41. Kf1 {[%emt 0:32:41]} Qh1+ {[%emt 0:30:40]} 42. Ke2 {[%emt 0:01:45]} Qe4+ {[%emt 0:00:09]} 43. Ne3 {[%emt 0:00:12]} Bxe3 {[%emt 0:00:11]} 0-1